{"text_format":"1","workbook":"xlsx","n_sheets":20,"sheets":["Module1","Module2","Module3","Module4","Sheet1","Sheet2","Sheet3","Sheet4","Sheet5","Sheet6","Sheet7","Sheet8","Sheet9","Sheet10","Sheet11","Sheet12","Sheet13","Sheet14","Sheet15","Sheet16"],"not_rendered":{"charts":0,"images":2,"macros":1,"external_links":0,"defined_names":0,"comments":0,"pivot_tables":0},"unopened":[{"sheet":"Module1","index":0,"reason":"part_missing"},{"sheet":"Module2","index":1,"reason":"part_missing"},{"sheet":"Module3","index":2,"reason":"part_missing"},{"sheet":"Module4","index":3,"reason":"part_missing"}],"bounds":{"document_bytes":16777216,"sheet_cells":100000,"rows_first":2000,"rows_last":500,"rows_between":2000,"halvings":0,"cell_chars":16384,"cell_head_chars":4096},"cells_cut":0,"cells_raw":0,"read":"whole","date_system":"1900"}

{"sheet":"Sheet1","index":4,"n_rows":44,"n_cols":12,"rows_kept":44,"cut":false,"hidden":false,"merged":[[0,7,0,11],[8,9,8,11],[1,7,1,11],[2,7,2,11],[5,9,5,10],[3,9,3,10],[43,7,43,11],[13,9,13,10],[15,9,15,10],[16,9,16,10],[17,9,17,10],[36,9,36,10],[35,9,35,10],[38,9,38,10],[39,9,39,10],[14,9,14,10],[32,7,32,11],[20,7,20,11],[4,0,4,1],[6,9,6,10],[18,9,18,10],[19,9,19,10],[7,9,7,10],[9,9,9,10],[10,9,10,10],[11,9,11,10],[12,9,12,10],[5,0,5,1],[5,3,5,4],[6,0,6,1],[6,3,6,4],[7,0,7,1],[7,3,7,4],[8,0,8,1],[0,0,0,5],[1,0,1,5],[2,0,2,5],[3,0,3,1],[3,3,3,4],[8,3,8,5],[9,0,9,1],[9,3,9,4],[10,0,10,1],[10,3,10,4],[11,0,11,1],[11,3,11,4],[12,0,12,1],[12,3,12,4],[13,0,13,1],[13,3,13,4],[14,0,14,1],[14,3,14,4],[15,0,15,1],[15,3,15,4],[16,0,16,1],[16,3,16,4],[17,0,17,1],[17,3,17,4],[18,0,18,1],[18,3,18,4],[19,0,19,1],[19,3,19,4],[34,0,34,1],[20,0,20,5],[21,0,21,1],[22,0,22,1],[23,0,23,1],[24,0,24,1],[26,0,26,1],[27,0,27,1],[28,0,28,1],[31,0,31,1],[32,0,32,5],[33,0,33,1],[29,0,29,1],[30,0,30,1],[43,0,43,5],[35,0,35,1],[36,0,36,5],[37,0,37,1],[37,3,37,4],[38,0,38,1],[38,3,38,4],[39,0,39,1],[40,0,40,1],[42,0,42,1]]}
["Σχεδιασμός σε κάμψη μετωπικών οδοντωτών τροχών κατά AGMA",null,null,null,null,null,null,"Σχεδιασμός σε επιφανειακή πίεση μετωπικών οδοντωτών τροχών κατά AGMA"]
[]
["Δεδομένα κοινά και για τους δυο οδοντωτούς τροχούς",null,null,null,null,null,null,"Δεδομένα κοινά και για τους δυο οδοντωτούς τροχούς"]
["Σχέση μετάδοσης",null,"i =",3,null,null,null,"Σχέση μετάδοσης","i =",3]
["Ισχύς προς μετάδοση",null,"N =",{"$f":"D11*(D24/1000)*D26/2/1000","v":12.481589500614296},{"$f":"D5/0.735","v":16.981754422604485},"kW / HP",null,"Ισχύς προς μετάδοση","N =",{"$f":"J11*J12/1000","v":4.6656420816992741},{"$f":"J5/0.735","v":6.3478123560534341},"kW / HP"]
["Γωνία εξειλιγμένης",null,"φ =",20,null,"μοίρες",null,"Γωνία Εξειλιγμένης","φ = ",{"$f":"D6","v":20},null,"μοίρες"]
["Module",null,"m = ",4,null,"mm",null,"Module","m =",{"$f":"D7","v":4},null,"mm"]
["Τύπος οδόντωσης",null,"Τύπος τροχού","Κανονική οδόντωση",null,"    ",null,"Τύπος οδόντωσης","Τύπος τροχού",{"$f":"D8","v":"Κανονική οδόντωση"},null,"    "]
["Τύπος φορτίου δοντιού",null,"Φορτίο δοντιού","Φορτίο εφαρμοζόμενο στην υψηλότερη θέση επαφής κατά την λειτουργία",null,null,null,"Τύπος φορτίου οδόντος","Φορτίο δοντιού",{"$f":"D9","v":"Φορτίο εφαρμοζόμενο στην υψηλότερη θέση επαφής κατά την λειτουργία"}]
["Πλάτος τροχού",null,"b =",50,null,"mm",null,"Πλάτος τροχού","b =",{"$f":"D10","v":50},null,"mm"]
["Μεταφερόμενη δύναμη",null,"Ft =",3130,null,"N",null,"Μεταφερόμενο φορτίο","Ft =",1170,null,"N"]
["Γραμμική ταχύτητα",null,"υt =",{"$f":"PI()*D24*D25/(60000)","v":3.9877282749566443},null,"m/s",null,"Περιφερειακή ταχύτητα","υt =",{"$f":"D12","v":3.9877282749566443},null,"m/s"]
["Κατηγορία ποιότητας ",null,"Qv =",5,null,"   ",null,"Συντ. ασφαλείας σε επιφ φθορά","SH =",{"$f":"SQRT(D17)","v":1.4142135623730951},null,"  "]
["Συντελεστής υπερφόρτισης ",null,"Ko =",1,null,"  ",null,"Συντ. υπερφόρτισης","Ko =",{"$f":"D14","v":1},null,"  "]
["Συντελεστής μεγέθους",null,"Ks =",1,null,"  ",null,"Συντελεστής μεγέθους","Ks =",1]
["Συντελεστής πάχους στεφάνης",null,"KB =",1,null,"  ",null,"Κατηγορία ποιότητας τροχών","Qυ =",{"$f":"D13","v":5},null,"   "]
["Συντελεστής ασφαλείας ",null,"SF =",2,null,"  ",null,"Συντελεστής επιφ. Κατάστασης","Cf =",1,null,"  "]
["Συντελεστής διάρκειας ζωής",null,"ΚL =",0.93,null,"   ",null,"Συντ. διάρκειας ζωής","ZN =",{"$f":"2.466*(L18)^(-0.056)","v":0.87900849502911826},null,100000000]
["Συντελεστής θερμοκρασίας",null,"KT =",1,null,"  ",null,"Συντ. θερμοκρασίας","KT =",1,null,"  "]
["Συντελεστής αξιοπιστίας",null,"KR =",1,null,"  ",null,"Συντ. σξιοπιστίας","KR =",1,null,"  "]
["Δεδομένα που ενδεχομένως είναι διαφορετικά για κάθε οδοντωτό τροχό",null,null,null,null,null,null,"Δεδομένα που ενδεχομένως είναι διαφορετικά για κάθε οδοντωτό τροχό"]
[null,null,null,"Pinion","Τροχός"," ",null,null,null,"Pinion","Τροχός"," "]
["Αριθμός δοντιών",null,"Ni =",17,{"$f":"D23*D4","v":51},"δόντια",null,"Αριθμός δοντιών","Ni =",{"$f":"D23","v":17},{"$f":"E23","v":51},"δόντια"]
["Διάμετρος",null,"d =",{"$f":"D7*D23","v":68},{"$f":"D7*E23","v":204},"mm",null,"Αρχική διάμετρος","d =",{"$f":"J23*J7","v":68},{"$f":"K23*J7","v":204},"mm"]
["Στροφές ανά λεπτό",null,"n=",1120,{"$f":"D25/D4","v":373.33333333333331},"rpm",null," -1=εσωτ. Οδόντ, 1=εξωτ. Οδόντ.","Τύπος τροχού =",1,1,"  "]
["Γωνιακή ταχύτητα",null,"ω = ",{"$f":"2*PI()*D25/60","v":117.28612573401894},{"$f":"2*PI()*E25/60","v":39.095375244672979},"rad/s",null,"Percent +long/-short","Ύψος κεφαλής",0,0]
["Στρεπτική ροπή",null,"Mt = N / ω",{"$f":"1000*D5/D26","v":106.42},{"$f":"1000*D5/E26","v":319.26000000000005},"Nm",null,"Σκληρότητα Brinell","Σκληρότητα",232,232,"BHN"]
["Τύπος υλικού",null,"Υλικό =","Steel HB232","Steel HB232",null,null,"Λόγος Poisson","ν =",0.3,0.3]
["Ποιότητα υλικού",null,"Ποιότητα =","Ποιότητα 1","Ποιότητα 1"," ",null,"Μέτρο Ελαστικότητας","E =",210000,210000,"MPa"]
[null,null,null,null,null,null,null,"Υλικό","Υλικό = ","Steel HB232","Steel HB232"]
[null,null,null,null,null,null,null,"Ποιότητα υλικού","Ποιότητα =","Ποιότητα 1","Ποιότητα 1"," "]
[]
["Τιμές εισερχόμενες από τον σχεδιαστή βάσει των ανωτέρω δεδομένων",null,null,null,null,null,null,"Τιμές εισερχόμενες από τον σχεδιαστή βάσει των ανωτέρω δεδομένων"]
["Επιτρεπόμενη τάση",null,"Sat =",220,220,"MPa",null,"Επιτρεπόμενες τάσεις","Sac =",{"$f":"2.2676*J27+204.93","v":731.01319999999987},{"$f":"2.2676*K27+204.93","v":731.01319999999987},"MPa"]
["Γεωμετρικός συντελεστής",null,"J =",0.3,0.39,null,null,{"$f":"A37","v":"Τιμές υπολογιζόμενες βάσει των ανωτέρω δεδομένων"}]
[null,null,null,null,null,null,null,"Γεωμετρικός συντελεστής ","I =",{"$f":"icalc(J24,K24,J25,J26,J6,J7)","v":0.12043829219244068}]
["Τιμές υπολογιζόμενες βάσει των ανωτέρω δεδομένων",null,null,null,null,null,null,"Ελαστικός συντελεστής","Cp =",{"$f":"SQRT(1/(PI()*((1-J28^2)/J29+(1-K28^2)/K29)))","v":191.64567250641844},null,"(MPa)1/2 "]
["Δυναμικός συντελεστής",null,"Kυ =",{"$f":"Kvcalc(D12,D13)","v":1.4628882064800508},null,"   ",null,"Συντ. λόγου σκληροτήτων","CH =",{"$f":"chcalc(J27,K27,J23,K23)","v":1},{"$f":"chcalc(J27,K27,J23,K23)","v":1}]
["Συντ. διανομής φορτίου",null,"Km =",{"$f":"Kmcalc(D23,D7,D10)","v":1.3401889617647058},null,"  ",null,"Δυναμικός συντελεστής","Kυ =",{"$f":"D38","v":1.4628882064800508},null,"   "]
["Αριστερό σκέλος εξίσ.",null,"σt =",{"$f":"D11/(D7*D10*D35)*(D14*D38*D15*D39*D16)","v":102.27518235536064},{"$f":"D11/(D7*D10*E35)*(D14*D38*D15*D39*D16)","v":78.673217196431281},"MPa",null,"Συντ. διανομής φορτίου","Km =",{"$f":"Kmcalc(J23,J7,J10)","v":1.3401889617647058},null,"  "]
["Δεξιό σκέλος εξίσ.",null,"Sεπ =",{"$f":"D34*D18/(D17*D19*D20)","v":102.30000000000001},{"$f":"E34*D18/(D17*D19*D20)","v":102.30000000000001},"MPa",null,"Αριστ. Μέρος εξίσωσης","σc =",{"$f":"J37*SQRT(J11*J14*J39*J40*J17/(J24*J10*J36))","v":453.58510307276828},{"$f":"J37*SQRT(J11*J14*J39*J40*J17/(K24*J10*J36))","v":261.87748135946691},"MPa"]
[null,null,null,null,null,null,null,"Δεξιό μέρος εξίσωσης","Sc επ =",{"$f":"J34*J18*J38/(J13*J19*J20)","v":454.36335068104722},{"$f":"K34*J18*K38/(J13*J19*J20)","v":454.36335068104722},"MPa"]
[null,null,"Κατάσταση",{"$f":"IF(D40<D41,\"ΑΣΦΑΛΕΙΑ\",\"ΑΣΤΟΧΙΑ\")","v":"ΑΣΦΑΛΕΙΑ"},{"$f":"IF(E40<E41,\"ΑΣΦΑΛΕΙΑ\",\"ΑΣΤΟΧΙΑ\")","v":"ΑΣΦΑΛΕΙΑ"},null,null,null,"Κατάσταση",{"$f":"IF(J41<J42,\"ΑΣΦΑΛΕΙΑ\",\"ΑΣΤΟΧΙΑ\")","v":"ΑΣΦΑΛΕΙΑ"},{"$f":"IF(K41<K42,\"ΑΣΦΑΛΕΙΑ\",\"ΑΣΤΟΧΙΑ\")","v":"ΑΣΦΑΛΕΙΑ"}]
["Σημείωση: Το λογιστικό αυτό φύλλο περιέχει macros δηλ. ενσωματωμένα προγράμματα Visual Basic που χρησιμοποιούνται για  αυτόματους υπολογισμούς. Επομένως πρέπει πάντα να επιτρέπεται από τον χρήστη η χρήση των macros. Η επιλογή αυτή γίνεται στο Tools-Macro-Security",null,null,null,null,null,null,"Σημείωση: Το λογιστικό αυτό φύλλο περιέχει macros δηλ. ενσωματωμένα προγράμματα Visual Basic που χρησιμοποιούνται για  αυτόματους υπολογισμούς. Επομένως πρέπει πάντα να επιτρέπεται από τον χρήστη η χρήση των macros. Η επιλογή αυτή γίνεται στο Tools-Macro-Security"]

{"sheet":"Sheet2","index":5,"n_rows":0,"n_cols":0,"rows_kept":0,"cut":false,"hidden":false,"merged":[]}

{"sheet":"Sheet3","index":6,"n_rows":0,"n_cols":0,"rows_kept":0,"cut":false,"hidden":false,"merged":[]}

{"sheet":"Sheet4","index":7,"n_rows":0,"n_cols":0,"rows_kept":0,"cut":false,"hidden":false,"merged":[]}

{"sheet":"Sheet5","index":8,"n_rows":0,"n_cols":0,"rows_kept":0,"cut":false,"hidden":false,"merged":[]}

{"sheet":"Sheet6","index":9,"n_rows":0,"n_cols":0,"rows_kept":0,"cut":false,"hidden":false,"merged":[]}

{"sheet":"Sheet7","index":10,"n_rows":0,"n_cols":0,"rows_kept":0,"cut":false,"hidden":false,"merged":[]}

{"sheet":"Sheet8","index":11,"n_rows":0,"n_cols":0,"rows_kept":0,"cut":false,"hidden":false,"merged":[]}

{"sheet":"Sheet9","index":12,"n_rows":0,"n_cols":0,"rows_kept":0,"cut":false,"hidden":false,"merged":[]}

{"sheet":"Sheet10","index":13,"n_rows":0,"n_cols":0,"rows_kept":0,"cut":false,"hidden":false,"merged":[]}

{"sheet":"Sheet11","index":14,"n_rows":0,"n_cols":0,"rows_kept":0,"cut":false,"hidden":false,"merged":[]}

{"sheet":"Sheet12","index":15,"n_rows":0,"n_cols":0,"rows_kept":0,"cut":false,"hidden":false,"merged":[]}

{"sheet":"Sheet13","index":16,"n_rows":0,"n_cols":0,"rows_kept":0,"cut":false,"hidden":false,"merged":[]}

{"sheet":"Sheet14","index":17,"n_rows":0,"n_cols":0,"rows_kept":0,"cut":false,"hidden":false,"merged":[]}

{"sheet":"Sheet15","index":18,"n_rows":0,"n_cols":0,"rows_kept":0,"cut":false,"hidden":false,"merged":[]}

{"sheet":"Sheet16","index":19,"n_rows":0,"n_cols":0,"rows_kept":0,"cut":false,"hidden":false,"merged":[]}